fUSD/lending_fUSD_20260128
["ID","MTS","AMOUNT","RATE_DAILY","PERIOD"]
[403872597,1769614160363,-378.38431742,0.00013681,2]
[403872598,1769614160397,-3254.62917349,0.00013681,2]
[403872599,1769614160455,-2733.98301818,0.00013681,2]
[403872600,1769614160517,-469.86441801,0.00013681,2]
[403872601,1769614160550,-184.44067477,0.00013681,2]
[403872602,1769614184606,-2500.0,0.00013682,2]
[403872603,1769614199933,-300.0,0.00013704,2]
[403872612,1769614231664,-263.0,0.00013726,2]
[403872613,1769614231674,-195.0,0.00013726,2]
[403872614,1769614231684,-500.0,0.00013748,2]
[403872615,1769614231693,-500.0,0.00013762,2]
[403872616,1769614231702,-390.46471605,0.00013762,2]
[403872617,1769614231713,-109.53528395,0.00013762,2]
[403872618,1769614231723,-1000.0,0.0001377,2]
[403872619,1769614231733,-190.46471605,0.00013771,2]
[403872620,1769614231751,-1009.53528395,0.00013771,2]
[403872621,1769614231764,-300.0,0.00013771,2]
[403872622,1769614231774,-300.0,0.00013771,2]
[403872623,1769614231785,-300.0,0.00013771,2]
[403872624,1769614231795,-300.0,0.00013771,2]
[403872625,1769614231805,-195.0,0.00013772,2]
[403872626,1769614231814,-250.0,0.00013772,2]
[403872627,1769614231824,-300.0,0.00013772,2]
[403872628,1769614231834,-250.0,0.00013772,2]
[403872629,1769614231843,-207.8994773,0.00013775,2]
[403872630,1769614231853,-663.89439212,0.00013775,2]
[403872631,1769614231863,-663.89439212,0.00013775,2]
[403872632,1769614231873,-663.89439212,0.00013775,2]
[403872633,1769614231882,-663.89439212,0.00013775,2]
[403872634,1769614231893,-663.89439212,0.00013775,2]
[403872635,1769614231903,-663.89439212,0.00013775,2]
[403872636,1769614231913,-663.89439212,0.00013775,2]
[403872637,1769614231922,-663.89439212,0.00013775,2]
[403872638,1769614231931,-663.89439212,0.00013775,2]
[403872639,1769614231940,-663.89439212,0.00013775,2]
[403872640,1769614231949,-663.89439212,0.00013775,2]
[403872641,1769614231959,-663.89439212,0.00013775,2]
[403872642,1769614231968,-663.89439212,0.00013775,2]
[403872643,1769614231978,-663.89439212,0.00013775,2]
[403872645,1769614231987,-663.89439212,0.00013775,2]
[403872647,1769614231997,-663.89439212,0.00013775,2]
[403872648,1769614232007,-663.89439212,0.00013775,2]
[403872649,1769614232016,-663.89439212,0.00013775,2]
[403872650,1769614232025,-663.89439212,0.00013775,2]
[403872651,1769614232387,-663.89439212,0.00013775,2]
[403872652,1769614232425,-663.89439212,0.00013775,2]
[403872653,1769614232435,-663.89439212,0.00013775,2]
[403872654,1769614232444,-663.89439212,0.00013775,2]
[403872655,1769614232453,-663.89439212,0.00013775,2]
[403872656,1769614232462,-663.89439212,0.00013775,2]
[403872657,1769614232471,-663.89439212,0.00013775,2]
[403872658,1769614232480,-663.89439212,0.00013775,2]
[403872659,1769614232490,-663.89439212,0.00013775,2]
[403872660,1769614232498,-663.89439212,0.00013775,2]
[403872661,1769614232507,-663.89439212,0.00013775,2]
[403872662,1769614232516,-663.89439212,0.00013775,2]
[403872663,1769614232525,-663.89439212,0.00013775,2]
[403872664,1769614232535,-663.89439212,0.00013775,2]
[403872665,1769614232544,-663.89439212,0.00013775,2]
[403872666,1769614232553,-663.89439212,0.00013775,2]
[403872667,1769614232563,-663.89439212,0.00013775,2]
[403872668,1769614232572,-663.89439212,0.00013775,2]
[403872669,1769614232581,-663.89439212,0.00013775,2]
[403872670,1769614232590,-9999.99,0.00013776,2]
[403872671,1769614232599,-150.99,0.0001378,2]
[403872672,1769614232610,-150.0,0.00013781,2]
[403872673,1769614232619,-450.2335377,0.00013781,2]
[403872674,1769614232628,-332.04958521,0.00013781,2]
[403872675,1769614232637,-194.156488,0.00013782,2]
[403872676,1769614232647,-500.0,0.00013782,2]
[403872677,1769614232656,-2080.77,0.00013782,2]
[403872678,1769614232665,-169.462,0.00013782,2]
[403872679,1769614232674,-4612.24,0.00013835,2]
[403872680,1769614232683,-1000.0,0.00013886,2]
[403872681,1769614232693,-360.3656,0.00013886,2]
[403872682,1769614232702,-150.0,0.00013989,2]
[403872683,1769614232711,-5514.88311618,0.0001399,2]
[403872684,1769614232720,-25823.43138576,0.00014157,2]
[403872685,1769614232729,-1503.08,0.00014252,2]
[403872686,1769614232738,-200.0,0.00014339,2]
[403872687,1769614232747,-6593.44837082,0.0001439,2]
[403872688,1769614232758,-25823.43138576,0.00014627,2]
[403872689,1769614232767,-409.01131241,0.00014808,2]
[403872690,1769614232776,-195.0,0.0001505,2]
[403872691,1769614232786,-300.0,0.0001505,2]
[403872692,1769614232806,-420.0,0.00015091,2]
[403872693,1769614232815,-420.0,0.00015091,2]
[403872694,1769614232827,-25823.43138576,0.00015098,2]
[403872695,1769614232836,-195.0,0.00015099,2]
[403872696,1769614232847,-1956.01796428,0.00015099,2]
[403872697,1769614232857,-300.0,0.00015099,2]
[403872698,1769614232866,-500.0,0.00015099,2]
[403872699,1769614232876,-4304.53405516,0.00015099,2]
[403872700,1769614232886,-255.0,0.00015108,2]
[403872701,1769614232895,-1680.0,0.00015148,2]
[403872702,1769614232905,-500.0,0.00015148,2]
[403872703,1769614232916,-150.17343473,0.00015148,2]
[403872704,1769614232926,-195.0,0.00015148,2]
[403872705,1769614232936,-250.0,0.00015148,2]
[403872706,1769614232946,-300.0,0.00015148,2]
[403872707,1769614232955,-151.0,0.00015328,2]
[403872708,1769614232965,-151.0,0.00015332,2]
[403872709,1769614232974,-151.0,0.00015332,2]
[403872710,1769614232984,-151.0,0.00015332,2]
[403872711,1769614232993,-151.0,0.00015338,2]
[403872712,1769614233003,-151.0,0.00015347,2]
[403872713,1769614233012,-151.0,0.00015374,2]
[403872714,1769614233022,-151.0,0.00015375,2]
[403872715,1769614233031,-508.32278899,0.000154,2]
[403872716,1769614233042,-25823.43138576,0.00015568,2]
[403872717,1769614233051,-10000.0,0.000158,2]
[403872718,1769614233061,-193.96169436,0.00015807,2]
[403872719,1769614233071,-369.92,0.0001599,2]
[403872720,1769614233080,-369.92,0.0001599,2]
[403872721,1769614233090,-369.92,0.0001599,2]
[403872722,1769614233099,-369.92,0.0001599,2]
[403872723,1769614233109,-369.92,0.0001599,2]
[403872724,1769614233118,-174.25,0.00016,2]
[403872725,1769614233129,-319793.46641073,0.00016,4]
[403872726,1769614233143,-45369.62606698,0.00016,4]
[403872727,1769614233155,-198129.11919428,0.00016,4]
[403872728,1769614233168,-160044.01705973,0.00016,4]
[403872729,1769614233179,-292.99923312,0.00016,4]
[403872730,1769614233190,-520.77267788,0.00016,4]
[403872731,1769614233202,-15807.91402074,0.00016,4]
[403872735,1769614237789,-328.31959918,0.00016,4]
[403872736,1769614237800,-42126.79033041,0.00016,4]
[403872737,1769614237850,-9057.38400054,0.00016,4]
[403872738,1769614237880,-201.6766416,0.00016,4]
[403872739,1769614237919,-964.0942,0.00016,4]
[403872740,1769614237983,-65343.02325724,0.00016,4]
[403872741,1769614237994,-25823.43138576,0.00016039,2]
[403872742,1769614238005,-1252.11225671,0.000162,5]
[403872743,1769614238015,-433.0,0.00016311,2]
[403872744,1769614238025,-500.0,0.00016373,2]
[403872745,1769614238035,-500.0,0.00016373,2]
[403872746,1769614238045,-165.31,0.0001644,2]
[403872748,1769614238055,-165.31,0.0001644,2]
[403872750,1769614238065,-14250.96396793,0.000165,2]
[403872752,1769614238075,-25823.43138576,0.00016509,2]
[403872754,1769614238084,-587.0,0.00016536,2]
[403872756,1769614238094,-2076.0,0.00016663,2]
[403872758,1769614238104,-501.35548304,0.00016921,2]
[403872760,1769614238113,-1000.0,0.00016921,2]
[403872762,1769614238124,-275.0,0.0001694,2]
[403872764,1769614238134,-25823.43138576,0.0001698,2]
[403872766,1769614238146,-1689.50243609,0.00016991,2]
[403872768,1769614238157,-275.0,0.0001706,2]
[403872770,1769614238168,-275.0,0.00017177,2]
[403872772,1769614238179,-275.0,0.00017196,2]
[403872774,1769614238190,-275.0,0.00017241,2]
[403872776,1769614238201,-275.0,0.00017272,2]
[403872778,1769614238212,-275.0,0.00017341,2]
[403872780,1769614238222,-275.0,0.00017375,2]
[403872782,1769614238233,-25823.43138576,0.0001745,2]
[403872784,1769614238243,-1500.0,0.00017468,2]
[403872786,1769614238253,-500.0,0.0001749,2]
[403872788,1769614238264,-275.0,0.00017586,2]
[403872790,1769614238274,-275.0,0.00017764,2]
[403872792,1769614238288,-275.0,0.00017767,2]
[403872794,1769614238298,-275.0,0.00017792,2]
[403872796,1769614238308,-275.0,0.00017816,2]
[403872798,1769614238318,-190.19209598,0.000179,3]
[403872800,1769614238329,-25823.43138576,0.00017921,2]
[403872802,1769614238338,-163.38545795,0.0001799,2]
[403872804,1769614238347,-163.38545795,0.0001799,2]
[403872806,1769614238358,-163.38545795,0.0001799,2]
[403872808,1769614238368,-165.31,0.0001799,2]
[403872810,1769614238378,-165.31,0.0001799,2]
[403872812,1769614238388,-165.31,0.0001799,2]
[403872815,1769614238400,-152.22,0.0001799,2]
[403872817,1769614238409,-152.22,0.0001799,2]
[403872819,1769614238418,-152.22,0.0001799,2]
[403872821,1769614238428,-516374.36181395,0.00018,2]
[403872823,1769614238437,-1397678.61814467,0.00018,2]
[403872825,1769614238447,-504.0,0.00018,2]
[403872827,1769614238456,-3234639.77486566,0.00018,2]
[403872829,1769614238465,-2646.79155626,0.00018,2]
[403872831,1769614238474,-2000.0,0.00018016,2]
[403872833,1769614238483,-275.0,0.00018081,2]
[403872835,1769614238493,-823.0,0.00018121,2]
[403872837,1769614238502,-275.0,0.00018147,2]
[403872839,1769614238512,-275.0,0.00018159,2]
[403872841,1769614238521,-275.0,0.00018176,2]
[403872843,1769614238530,-275.0,0.00018224,2]
[403872845,1769614238539,-275.0,0.0001835,2]
[403872847,1769614238549,-275.0,0.00018382,2]
[403872849,1769614238559,-275.0,0.0001839,2]
[403872851,1769614238571,-275.0,0.00018506,2]
[403872853,1769614238580,-500.0,0.00018564,2]
[403872855,1769614238590,-275.0,0.00018573,2]
[403872857,1769614238599,-275.0,0.00018618,2]
[403872859,1769614238609,-275.0,0.00018696,2]
[403872861,1769614238618,-566.81664929,0.00019,2]
[403872863,1769614238627,-1152.0,0.00019857,2]
[403872865,1769614238636,-1689.50243609,0.00020295,2]
[403872866,1769614238647,-153.85,0.00021,7]
[403872868,1769614238656,-1613.0,0.00021759,2]
[403872870,1769614238666,-5000.0,0.00021918,2]
[403872873,1769614238675,-1852.42,0.00022281,2]
[403872875,1769614238686,-237.53,0.000223,7]
[403872877,1769614238695,-1689.50243609,0.000236,2]
[403872879,1769614238705,-2258.0,0.00023844,2]
[403872881,1769614238714,-1000.0,0.00024658,2]
[403872883,1769614238724,-715.0,0.00026129,2]
[403872884,1769614238733,-1689.50243609,0.00026905,2]
[403872886,1769614238743,-150.0,0.00027369,2]
[403872888,1769614238753,-160.37,0.00027512,2]
[403872890,1769614238763,-181.73087485,0.00028557,2]
[403872893,1769614238773,-1000.0,0.00028648,2]
[403872894,1769614238783,-461.57,0.000298,14]
[403872896,1769614238793,-5705.36934082,0.0003,30]
[403872898,1769614238803,-1689.50243609,0.00030209,2]
[403872900,1769614238813,-160.37,0.00030263,2]
[403872902,1769614238822,-348.28,0.00030373,2]
[403872905,1769614238832,-78242.82767705,0.00031,2]
[403872907,1769614238842,-500.0,0.00031644,2]
[403872908,1769614238851,-160.37,0.00033015,2]
[403872910,1769614238861,-1374.0,0.000331,14]
[403872912,1769614238871,-507.7,0.000331,2]
[403872915,1769614238885,-504.0,0.000335,16]
[403872917,1769614238897,-1689.50243609,0.00033514,2]
[403872919,1769614238907,-502.55,0.000336,14]
[403872921,1769614238916,-237.53,0.000339,14]
[403872923,1769614238926,-307.34,0.00035616,30]
[403872925,1769614238935,-4831.0,0.00035704,2]
[403872927,1769614238946,-567.0,0.00035704,2]
[403872929,1769614238956,-160.37,0.00035766,2]
[403872931,1769614238966,-1249.93,0.00035775,2]
[403872933,1769614238976,-1249.93,0.00035891,2]
[403872935,1769614238986,-1249.93,0.00036008,2]
[403872936,1769614238996,-1249.93,0.00036124,2]
[403872938,1769614239006,-1249.93,0.00036241,2]
[403872940,1769614239016,-1249.93,0.00036357,2]
[403872942,1769614239026,-262.5,0.00036398,7]
[403872944,1769614239036,-1249.93,0.00036474,2]
[403872945,1769614239045,-158.7,0.00036551,120]
[403872947,1769614239055,-1249.93,0.0003659,2]
[403872948,1769614239065,-1374.0,0.000366,14]
[403872949,1769614239074,-507.7,0.000366,2]
[403872950,1769614239084,-158.7,0.00036605,120]
[403872951,1769614239093,-1249.93,0.00036707,2]
[403872952,1769614239103,-1689.50243609,0.00036819,2]
[403872953,1769614239115,-1249.93,0.00036823,2]
[403872954,1769614239127,-26951.91876964,0.00036888,20]
[403872955,1769614239137,-522500.65961444,0.00036888,60]
[403872956,1769614239149,-1249.93,0.00036939,2]
[403872957,1769614239569,-237.53,0.00037,14]
[403872958,1769614239578,-1361.5,0.00037006,30]
[403872959,1769614239588,-1249.93,0.00037056,2]
[403872960,1769614239598,-502.55,0.000371,14]
[403872961,1769614239607,-1249.93,0.00037172,2]
[403872962,1769614239616,-1249.93,0.00037289,2]
[403872963,1769614239625,-1249.93,0.00037405,2]
[403872964,1769614239635,-384.64,0.000375,30]
[403872965,1769614239646,-1249.93,0.00037522,2]
[403872966,1769614239655,-1361.5,0.00037615,30]
[403872967,1769614239664,-1249.93,0.00037638,2]
[403872968,1769614239674,-1249.93,0.00037755,2]
[403872969,1769614239686,-2080.77,0.00037837,49]
[403872970,1769614239697,-1249.93,0.00037871,2]
[403872971,1769614239706,-1500.0,0.000379,2]
[403872972,1769614239716,-1249.93,0.00037988,2]
[403872973,1769614239726,-1374.0,0.00038,14]
[403872974,1769614239735,-1000.72904459,0.00038,10]
[403872975,1769614239745,-507.7,0.00038,2]
[403872976,1769614239754,-1361.5,0.00038224,30]
[403872977,1769614239763,-158.7,0.00038378,120]
[403872978,1769614239773,-160.37,0.00038517,2]
[403872979,1769614239783,-268.744,0.00038704,2]
[403872980,1769614239792,-1361.5,0.00038832,30]
[403872981,1769614239803,-880.0545839,0.00039184,2]
[403872982,1769614239813,-880.0545839,0.00039184,2]
[403872983,1769614239822,-1361.5,0.00039441,120]
[403872986,1769614239832,-237.53,0.000395,14]
[403872988,1769614239841,-1361.5,0.0004005,120]
[403872991,1769614239850,-502.55,0.000401,14]
[403872993,1769614239860,-1689.50243609,0.00040123,15]
[403872994,1769614239869,-307.34,0.00040451,30]
[403872995,1769614239879,-1361.5,0.00040658,120]
[403872996,1769614239892,-1000.0,0.00040899,30]
[403872997,1769614239902,-1511.78218147,0.00041,2]
[403872998,1769614239912,-798.0,0.00041096,120]
[403872999,1769614239921,-507.7,0.000411,30]
[403873000,1769614239931,-152.0,0.00041104,3]
[403873001,1769614239941,-500.0,0.00041189,2]
[403873002,1769614239951,-1374.0,0.000412,14]
[403873003,1769614239960,-1361.5,0.00041267,120]
[403873004,1769614239970,-160.37,0.00041268,2]
[403873005,1769614239980,-500.0,0.00041397,2]
[403873006,1769614239990,-213.09057276,0.00041447,60]
[403873007,1769614240001,-318.77075275,0.00041447,60]
[403873008,1769614240010,-431.3034,0.00041447,60]
[403873009,1769614240020,-200.0,0.00041618,3]
[403873010,1769614240030,-798.0,0.00041644,120]
[403873011,1769614240040,-500.0,0.00041905,60]
[403873012,1769614240050,-533.21,0.00042192,120]
[403873013,1769614240059,-527.9458668,0.00042211,7]
[403873014,1769614240069,-1000.0,0.00042213,30]
[403873015,1769614240079,-669.22,0.00042575,30]
[403873016,1769614240089,-9435.14450321,0.00042623,30]
[403873017,1769614240099,-359.78,0.00042712,30]
[403873018,1769614240109,-1000.0,0.00042748,31]
[403873019,1769614240118,-1000.0,0.000428,120]
[403873020,1769614240129,-1000.0,0.00042845,30]
[403873021,1769614240138,-152.18149603,0.00042909,60]
[403873022,1769614240150,-500.0,0.00042909,60]
[403873023,1769614240160,-500.0,0.00042909,60]
[403873024,1769614240169,-150.0,0.00042909,2]
[403873025,1769614240179,-500.0,0.00042909,60]
[403873026,1769614240188,-500.0,0.00042909,60]
[403873027,1769614240199,-500.0,0.00042964,60]
[403873028,1769614240208,-500.0,0.00042964,60]
[403873029,1769614240217,-500.0,0.00042964,60]
[403873030,1769614240227,-500.0,0.00042964,60]
[403873031,1769614240237,-1016.76407207,0.00043,120]
[403873032,1769614240246,-358208.70863824,0.00043,30]
[403873033,1769614240255,-500.0,0.00043001,60]
[403873034,1769614240265,-563.76725921,0.00043019,60]
[403873035,1769614240276,-500.0,0.00043019,60]
[403873036,1769614240290,-500.0,0.00043019,60]
[403873037,1769614240299,-500.0,0.00043019,60]
[403873038,1769614240309,-372.17,0.00043055,30]
[403873039,1769614240318,-1127.95,0.00043055,30]
[403873040,1769614240329,-559.17,0.00043055,30]
[403873041,1769614240338,-559.17,0.00043055,30]
[403873042,1769614240347,-313.86,0.00043055,30]
[403873043,1769614240359,-500.0,0.00043073,60]
[403873044,1769614240368,-500.0,0.00043073,60]
[403873045,1769614240377,-500.0,0.00043073,60]
[403873046,1769614240386,-407.0,0.00043111,2]
[403873048,1769614240397,-1000.0,0.00043119,30]
[403873049,1769614240406,-500.0,0.00043128,60]
[403873050,1769614240416,-500.0,0.00043128,60]
[403873051,1769614240426,-500.0,0.00043128,60]
[403873052,1769614240435,-306.08792807,0.00043143,2]
[403873053,1769614240445,-151.0,0.00043153,120]
[403873054,1769614240458,-244515.2936651,0.00043156,2]
[403873055,1769614240467,-217.68391954,0.00043183,60]
[403873056,1769614240477,-500.0,0.00043183,60]
[403873057,1769614240486,-500.0,0.00043183,60]
[403873058,1769614240495,-800.0,0.00043199,16]
[403873059,1769614240505,-800.0,0.00043199,16]
[403873060,1769614240514,-800.0,0.00043199,16]
[403873061,1769614240524,-334.4629756,0.00043199,16]
[403873062,1769614240533,-800.0,0.00043199,16]
[403873063,1769614240543,-800.0,0.00043199,16]
[403873064,1769614240552,-800.0,0.00043199,16]
[403873065,1769614240561,-800.0,0.00043199,16]
[403873066,1769614240571,-800.0,0.00043199,16]
[403873067,1769614240580,-800.0,0.00043199,16]
[403873069,1769614240590,-800.0,0.00043199,16]
[403873071,1769614240600,-800.0,0.00043199,16]
[403873073,1769614240609,-500.0,0.00043238,60]
[403873075,1769614240619,-500.0,0.00043238,60]
[403873077,1769614240628,-200.0,0.0004328,120]
[403873079,1769614240637,-9707.0,0.00043287,7]
[403873081,1769614240647,-500.0,0.00043293,60]
[403873082,1769614240657,-500.0,0.00043293,60]
[403873083,1769614240666,-469.8847,0.00043318,30]
[403873084,1769614240676,-500.0,0.00043347,60]
[403873085,1769614240685,-500.0,0.00043347,60]
[403873086,1769614240695,-1000.0,0.00043393,30]
[403873087,1769614240705,-180.26636561,0.000434,120]
[403873088,1769614240715,-486.57119945,0.000434,120]
[403873089,1769614240724,-789.1475218,0.000434,120]
[403873090,1769614240734,-500.0,0.00043402,60]
[403873091,1769614240744,-500.0,0.00043402,60]
[403873092,1769614240753,-407.0,0.00043418,2]
[403873093,1769614240763,-778.02286206,0.00043427,18]
[403873094,1769614240772,-500.0,0.00043428,30]
[403873095,1769614240781,-500.0,0.00043428,30]
[403873096,1769614240791,-500.0,0.00043428,30]
[403873097,1769614240800,-500.0,0.00043428,30]
[403873098,1769614240811,-500.0,0.00043428,30]
[403873099,1769614240820,-500.0,0.00043428,30]
[403873100,1769614240829,-500.0,0.00043428,30]
[403873101,1769614240838,-500.0,0.00043428,30]
[403873102,1769614240848,-500.0,0.00043428,30]
[403873103,1769614240858,-500.0,0.00043428,30]
[403873104,1769614240867,-500.0,0.00043428,30]
[403873105,1769614240877,-500.0,0.00043428,30]
[403873106,1769614240886,-500.0,0.00043428,30]
[403873107,1769614240898,-500.0,0.00043428,30]
[403873108,1769614240909,-500.0,0.00043428,30]
[403873109,1769614240918,-500.0,0.00043428,30]
[403873110,1769614240928,-500.0,0.00043428,30]
[403873111,1769614240938,-500.0,0.00043428,30]
[403873112,1769614240947,-500.0,0.00043428,30]
[403873113,1769614240957,-500.0,0.00043428,30]
[403873114,1769614240967,-187.0,0.00043428,30]
[403873115,1769614240977,-181.73087485,0.00043428,11]
[403873116,1769614240987,-1689.50243609,0.00043428,15]
[403873117,1769614240997,-190.19209598,0.00043428,8]
[403873118,1769614241007,-500.0,0.00043457,60]
[403873119,1769614241017,-500.0,0.00043457,60]
[403873120,1769614241026,-407.0,0.00043466,2]
[403873121,1769614241036,-253.0,0.000435,43]
[403873122,1769614241046,-500.0,0.00043512,60]
[403873123,1769614241055,-500.0,0.00043512,60]
[403873124,1769614241064,-151.0,0.00043525,120]
[403873125,1769614241074,-151.0,0.00043525,120]
[403873126,1769614241084,-151.0,0.00043525,120]
[403873127,1769614241093,-151.0,0.00043525,120]
[403873128,1769614241103,-151.0,0.00043527,20]
[403873129,1769614241112,-151.0,0.00043527,20]
[403873130,1769614241122,-386.4,0.00043527,30]
[403873131,1769614241132,-183.823457,0.00043527,120]
[403873132,1769614241142,-977.16126562,0.00043527,30]
[403873133,1769614241152,-1000.0,0.00043527,5]
[403873134,1769614241162,-36999.27538308,0.00043528,30]
[403873135,1769614241171,-1234.81399869,0.00043528,120]
[403873136,1769614241180,-187.547238,0.00043528,120]
[403873137,1769614241191,-152.231005,0.00043528,120]
[403873138,1769614241201,-151.0,0.00043528,120]
[403873139,1769614241211,-151.0,0.00043528,120]
[403873140,1769614241220,-151.0,0.00043528,120]
[403873141,1769614241229,-151.0,0.00043528,120]
[403873142,1769614241238,-151.0,0.00043528,120]
[403873143,1769614241248,-151.0,0.00043528,120]
[403873144,1769614241258,-151.0,0.00043528,120]
[403873145,1769614241267,-151.0,0.00043528,120]
[403873146,1769614241277,-183.893422,0.00043528,120]
[403873147,1769614241286,-151.0,0.00043528,120]
[403873148,1769614241299,-151.0,0.00043528,120]
[403873149,1769614241309,-151.0,0.00043528,120]
[403873150,1769614241318,-151.0,0.00043528,120]
[403873151,1769614241328,-151.0,0.00043528,120]
[403873152,1769614241339,-151.0,0.00043528,120]
[403873153,1769614241348,-151.0,0.00043528,120]
[403873154,1769614241357,-151.0,0.00043528,120]
[403873155,1769614241367,-151.0,0.00043528,120]
[403873156,1769614241377,-151.0,0.00043528,120]
[403873157,1769614241386,-151.0,0.00043528,120]
[403873158,1769614241397,-151.0,0.00043528,120]
[403873159,1769614241407,-151.0,0.00043528,120]
[403873160,1769614241416,-237.094121,0.00043528,120]
[403873161,1769614241426,-151.0,0.00043528,120]
[403873162,1769614241436,-151.0,0.00043528,120]
[403873163,1769614241445,-151.0,0.00043528,120]
[403873164,1769614241455,-151.0,0.00043528,120]
[403873165,1769614241464,-237.102864,0.00043528,120]
[403873166,1769614241474,-151.0,0.00043528,15]
[403873167,1769614241483,-151.0,0.00043528,15]
[403873168,1769614241493,-151.0,0.00043528,15]
[403873169,1769614241506,-151.0,0.00043528,15]
[403873170,1769614241516,-151.0,0.00043528,120]
[403873171,1769614241526,-151.0,0.00043528,15]
[403873172,1769614241536,-151.0,0.00043528,15]
[403873173,1769614241545,-151.0,0.00043528,15]
[403873174,1769614241557,-151.0,0.00043528,15]
[403873175,1769614241568,-151.0,0.00043528,120]
[403873176,1769614241578,-151.0,0.00043528,15]
[403873177,1769614241587,-151.0,0.00043528,120]
[403873178,1769614241596,-258.918016,0.00043528,120]
[403873179,1769614241606,-151.0,0.00043528,15]
[403873180,1769614241615,-151.0,0.00043528,15]
[403873181,1769614241624,-151.0,0.00043528,15]
[403873182,1769614241634,-151.0,0.00043528,15]
[403873183,1769614241645,-291.43899,0.00043528,15]
[403873184,1769614241654,-151.0,0.00043528,120]
[403873185,1769614241664,-151.0,0.00043528,120]
[403873186,1769614241674,-152.63775,0.00043528,120]
[403873187,1769614241684,-151.0,0.00043528,120]
[403873188,1769614241693,-151.0,0.00043528,120]
[403873189,1769614241703,-151.0,0.00043528,120]
[403873190,1769614241713,-151.0,0.00043528,120]
[403873191,1769614241722,-151.0,0.00043528,120]
[403873192,1769614241732,-181.043503,0.00043528,120]
[403873193,1769614241741,-181.043503,0.00043528,120]
[403873194,1769614241750,-181.043503,0.00043528,120]
[403873195,1769614241760,-181.043503,0.00043528,120]
[403873196,1769614241770,-181.043503,0.00043528,120]
[403873197,1769614241780,-181.043503,0.00043528,120]
[403873198,1769614241789,-181.043503,0.00043528,120]
[403873199,1769614241799,-181.043503,0.00043528,120]
[403873200,1769614241810,-181.043503,0.00043528,120]
[403873201,1769614241820,-181.043503,0.00043528,120]
[403873202,1769614241830,-181.043507,0.00043528,120]
[403873203,1769614241839,-151.0,0.00043528,120]
[403873204,1769614241853,-151.0,0.00043528,120]
[403873205,1769614241863,-151.0,0.00043528,120]
[403873206,1769614241872,-151.0,0.00043528,120]
[403873207,1769614241882,-151.0,0.00043528,120]
[403873208,1769614241891,-151.0,0.00043528,120]
[403873209,1769614241902,-151.0,0.00043528,120]
[403873210,1769614241911,-151.0,0.00043528,120]
[403873211,1769614241921,-151.0,0.00043528,120]
[403873212,1769614241931,-256.650133,0.00043528,120]
[403873213,1769614241941,-174.821563,0.00043528,120]
[403873214,1769614241950,-151.0,0.00043528,120]
[403873215,1769614241959,-151.0,0.00043528,120]
[403873216,1769614241968,-151.0,0.00043528,120]
[403873217,1769614241978,-151.0,0.00043528,120]
[403873218,1769614241987,-151.0,0.00043528,120]
[403873219,1769614241997,-151.0,0.00043528,120]
[403873220,1769614242006,-151.0,0.00043528,120]
[403873221,1769614242015,-151.0,0.00043528,120]
[403873222,1769614242025,-151.0,0.00043528,120]
[403873223,1769614242034,-151.0,0.00043528,120]